bitfinex/quotes_BTCUSD_20250218
["timestamp","ask_amount","ask_price","bid_price","bid_amount"]
[1739859190285,0.12054066,95560.0,95550.0,0.10250365]
[1739859191199,0.12054066,95560.0,95534.0,0.0201703]
[1739859191200,0.12054066,95560.0,95539.0,0.209338]
[1739859191433,0.12054066,95560.0,95542.0,0.156998]
[1739859191637,0.842089,95559.0,95543.0,0.00104645]
[1739859191843,0.335525,95559.0,95550.0,0.007]
[1739859192048,0.335525,95559.0,95542.0,0.10250365]
[1739859192049,0.409579,95559.0,95542.0,0.1035501]
[1739859192254,0.409579,95559.0,95544.0,0.156995]
[1739859192472,0.259502,95559.0,95544.0,0.156995]
[1739859192714,0.259502,95559.0,95546.0,0.156992]
[1739859192920,0.15,95569.0,95547.0,0.10250365]
[1739859193124,0.15,95569.0,95557.0,0.156972]
[1739859193335,0.15,95569.0,95554.0,0.209304]
[1739859193546,0.15,95569.0,95558.0,0.00104635]
[1739859193749,0.15,95569.0,95559.0,0.209294]
[1739859193953,0.15,95569.0,95560.0,0.00104633]
[1739859194159,0.078,95570.0,95560.0,0.00104633]
[1739859194364,0.078,95570.0,95561.0,0.00104632]
[1739859194561,0.078,95570.0,95563.0,0.156964]
[1739859194771,0.078,95570.0,95562.0,0.00104632]
[1739859194976,0.0778,95576.0,95564.0,0.00104632]
[1739859195183,0.00061256,95577.0,95564.0,0.10354997]
[1739859195730,0.00061256,95577.0,95567.0,0.156957]
[1739859196963,0.00061256,95577.0,95565.0,0.15696]
[1739859197176,0.00061256,95577.0,95567.0,0.003]
[1739859197398,0.00061256,95577.0,95568.0,0.156955]
[1739859197817,0.00061256,95577.0,95565.0,0.00104622]
[1739859198026,0.00061256,95577.0,95576.0,0.156943]
[1739859198534,0.00061256,95577.0,95576.0,0.1579891]
[1739859198771,0.00061256,95577.0,95576.0,0.26049275]
[1739859198972,0.00061256,95577.0,95576.0,0.25944665]
[1739859199964,0.00061256,95577.0,95576.0,0.28012093]
[1739859200384,0.00061256,95577.0,95576.0,0.28712093]
[1739859200905,0.00061256,95577.0,95576.0,0.28912093]
[1739859201126,0.00061256,95577.0,95576.0,0.28712093]
[1739859201531,0.00061256,95577.0,95576.0,0.27144665]
[1739859207524,0.00061256,95577.0,95576.0,0.26996665]
[1739859208686,0.00057256,95577.0,95576.0,0.26996665]
[1739859214061,0.00057256,95577.0,95576.0,0.28996665]
[1739859215038,0.00057256,95577.0,95576.0,0.45996665]
[1739859216344,0.00057256,95577.0,95576.0,0.56336665]
[1739859216545,0.00057256,95577.0,95576.0,0.55836665]
[1739859216758,0.00057256,95577.0,95576.0,0.56536665]
[1739859217226,0.00057256,95577.0,95576.0,0.57236665]
[1739859220911,0.00057256,95577.0,95576.0,0.89879616]
[1739859225018,0.00057256,95577.0,95576.0,0.89913656]
[1739859226488,0.12054066,95600.0,95599.0,0.156905]
[1739859226667,0.12054066,95609.0,95602.0,0.1569]
[1739859226818,0.12054066,95609.0,95603.0,0.10250365]
[1739859227019,0.00458643,95608.0,95603.0,0.10250365]
[1739859227218,0.00458643,95608.0,95581.0,0.209246]
[1739859227422,0.12054066,95591.0,95590.0,0.15692]
[1739859227647,0.12054066,95600.0,95590.0,0.10250365]
[1739859227864,0.12054066,95600.0,95599.0,0.007]
[1739859228031,0.0494,95607.0,95599.0,0.10950365]
[1739859228249,0.548045,95606.0,95579.0,0.156937]
[1739859228428,0.0768,95588.0,95580.0,0.10250365]
[1739859228625,0.0768,95588.0,95586.0,0.156926]
[1739859228844,0.0768,95588.0,95587.0,0.10250365]
[1739859230059,0.0768,95588.0,95587.0,0.10950365]
[1739859230486,0.0768,95588.0,95587.0,0.10250365]
[1739859230684,0.0825,95595.0,95588.0,0.209231]
[1739859230963,0.0825,95595.0,95591.0,0.156918]
[1739859231165,0.0825,95595.0,95592.0,0.10250365]
[1739859231610,0.0825,95595.0,95584.0,0.02095942]
[1739859231812,0.0825,95595.0,95588.0,0.10250365]
[1739859231984,0.0825,95595.0,95588.0,0.10950365]
[1739859232501,0.0825,95595.0,95587.0,0.007]
[1739859232711,0.0825,95595.0,95578.0,0.0211014]
[1739859232970,0.0825,95595.0,95584.0,0.007]
[1739859232971,0.12054066,95588.0,95584.0,0.007]
[1739859233160,0.12054066,95594.0,95585.0,0.10250365]
[1739859233699,0.12054066,95594.0,95587.0,0.007]
[1739859233972,0.12054066,95594.0,95584.0,0.007]
[1739859234122,0.156917,95592.0,95584.0,0.10250365]
[1739859234319,0.209222,95592.0,95587.0,0.007]
[1739859234524,0.083,95591.0,95587.0,0.007]
[1739859234722,0.23992,95591.0,95584.0,0.10950365]
[1739859234993,0.156925,95587.0,95584.0,0.007]
[1739859235172,0.156928,95585.0,95584.0,0.007]
[1739859235632,0.156928,95585.0,95584.0,0.014]
[1739859235834,0.156928,95585.0,95584.0,0.007]
[1739859236352,0.237328,95585.0,95584.0,0.007]
[1739859236560,0.25309695,95585.0,95584.0,0.012]
[1739859236791,1.20191795,95585.0,95584.0,0.007]
[1739859236995,0.209245,95582.0,95576.0,0.0003404]
[1739859237203,0.0788,95581.0,95576.0,0.0003404]
[1739859237452,0.156941,95577.0,95576.0,0.0003404]
[1739859237658,0.205541,95577.0,95576.0,0.0003404]
[1739859237862,0.284341,95577.0,95576.0,0.0003404]
[1739859238320,0.284341,95577.0,95576.0,0.0073404]
[1739859238659,0.284341,95577.0,95576.0,0.0003404]
[1739859239088,0.284341,95577.0,95576.0,0.0063404]
[1739859239240,0.284341,95577.0,95576.0,0.0073404]
[1739859239578,0.284341,95577.0,95576.0,0.0143404]
[1739859240546,0.1274,95577.0,95576.0,0.0143404]
[1739859241160,0.0788,95577.0,95576.0,0.0143404]
[1739859242342,0.12054066,95586.0,95582.0,0.156931]
[1739859242542,0.0756,95591.0,95583.0,0.10250365]
[1739859243141,0.0756,95591.0,95584.0,0.156928]
[1739859243347,0.0756,95591.0,95583.0,0.25943365]
[1739859243548,0.0756,95591.0,95584.0,0.156929]
[1739859243969,0.0756,95591.0,95583.0,0.10250365]
[1739859244370,0.0756,95591.0,95583.0,0.10550365]
[1739859244590,0.0483,95598.0,95583.0,0.10550365]
[1739859244793,0.12054066,95593.0,95583.0,0.10950365]
[1739859245199,0.156922,95589.0,95583.0,0.10950365]
[1739859245401,0.12054066,95593.0,95583.0,0.10950365]
[1739859245606,0.156922,95589.0,95583.0,0.10650365]
[1739859245804,0.156929,95585.0,95583.0,0.004]
[1739859246006,0.156929,95585.0,95584.0,0.003]
[1739859246208,0.156929,95585.0,95583.0,0.004]
[1739859246417,0.156929,95585.0,95576.0,0.0003404]
[1739859246635,0.156929,95585.0,95583.0,0.002]
[1739859246834,0.156929,95585.0,95583.0,0.003]
[1739859247063,0.156929,95585.0,95583.0,0.001]
[1739859247210,0.156929,95585.0,95584.0,0.004]
[1739859247410,2.119095,95585.0,95584.0,0.004]
[1739859247615,0.156933,95582.0,95576.0,0.0053404]
[1739859248010,0.156933,95582.0,95576.0,0.0003404]
[1739859248350,0.0816,95584.0,95576.0,0.0003404]
[1739859248692,0.23853,95584.0,95576.0,0.0003404]
[1739859248898,0.23853,95584.0,95583.0,0.004]
[1739859249117,0.23853,95584.0,95576.0,0.0003404]
[1739859249318,0.0816,95584.0,95576.0,0.0003404]
[1739859249531,0.0816,95584.0,95576.0,0.0053404]
[1739859249796,0.0816,95584.0,95576.0,0.0003404]
[1739859250240,0.0816,95584.0,95583.0,0.005]
[1739859250449,0.0816,95584.0,95576.0,0.0003404]
[1739859250684,0.0816,95584.0,95576.0,0.0063404]
[1739859250882,0.0816,95584.0,95576.0,0.0113404]
[1739859251091,0.0816,95584.0,95576.0,0.0053404]
[1739859251292,0.12054066,95586.0,95577.0,0.10250365]
[1739859251423,0.12054066,95586.0,95583.0,0.006]
[1739859251631,0.15,95589.0,95583.0,0.006]
[1739859252421,0.0454,95590.0,95583.0,0.006]
[1739859252629,0.15,95584.0,95583.0,0.006]
[1739859252831,0.15,95584.0,95583.0,0.012]
[1739859253037,0.15,95584.0,95583.0,0.006]
[1739859253461,0.874867,95584.0,95583.0,0.006]
[1739859253666,0.874867,95584.0,95576.0,0.0003404]
[1739859253868,0.209247,95581.0,95576.0,0.0003404]
[1739859254076,0.15694,95578.0,95576.0,0.0003404]
[1739859254693,0.854352,95577.0,95576.0,0.0003404]
[1739859254895,0.854352,95577.0,95576.0,0.0040404]
[1739859256169,0.565326,95577.0,95576.0,0.0050404]
[1739859256384,0.565326,95577.0,95576.0,0.0110404]
[1739859256591,0.415571,95577.0,95576.0,0.0110404]
[1739859256797,0.415571,95577.0,95576.0,0.0050404]
[1739859257211,0.415571,95577.0,95576.0,0.0110404]
[1739859257799,0.15694,95578.0,95576.0,0.0110404]
[1739859258680,0.15,95578.0,95576.0,0.0110404]
[1739859258885,0.30694,95578.0,95576.0,0.0110404]
[1739859259087,0.30694,95578.0,95576.0,0.0060404]
[1739859259306,0.30694,95578.0,95576.0,0.0110404]
[1739859259525,0.30694,95578.0,95576.0,0.0050404]
[1739859259727,0.30694,95578.0,95576.0,0.0110404]
[1739859260137,0.456329,95577.0,95576.0,0.0110404]
[1739859260310,0.533429,95577.0,95576.0,0.0110404]
[1739859261168,0.12054066,95562.0,95553.0,0.209307]
[1739859261395,0.12054066,95562.0,95554.0,0.10250365]
[1739859261578,0.12054066,95564.0,95554.0,0.10250365]
[1739859261807,0.0753,95563.0,95554.0,0.10250365]
[1739859262105,0.0753,95563.0,95545.0,0.156992]
[1739859262318,0.12054066,95557.0,95548.0,0.10250365]
[1739859262442,0.209301,95556.0,95548.0,0.10250365]
[1739859262642,0.12054066,95557.0,95548.0,0.10250365]
[1739859262893,0.156984,95551.0,95545.0,0.00044226]
[1739859263097,0.12054066,95557.0,95554.0,0.007]
[1739859263324,0.156976,95556.0,95554.0,0.007]
[1739859263732,0.156976,95556.0,95548.0,0.006]
[1739859263733,0.156981,95553.0,95548.0,0.006]
[1739859263933,0.16724066,95557.0,95548.0,0.006]
[1739859263934,0.16724066,95557.0,95548.0,0.007]
[1739859264341,0.32421466,95557.0,95548.0,0.007]
[1739859264739,0.156976,95556.0,95548.0,0.007]
[1739859265175,0.156978,95555.0,95548.0,0.007]
[1739859265379,0.156978,95555.0,95545.0,0.00044226]
[1739859265580,0.156978,95555.0,95554.0,0.005]
[1739859265754,0.0467,95557.0,95554.0,0.012]
[1739859265981,0.156976,95556.0,95554.0,0.007]
[1739859266279,0.156976,95556.0,95546.0,0.156991]
[1739859266823,0.001,95556.0,95548.0,0.006]
[1739859267031,0.203675,95557.0,95538.0,0.00604119]
[1739859267277,0.156976,95556.0,95554.0,0.007]
[1739859268445,0.157976,95556.0,95554.0,0.013]
[1739859268655,0.156976,95556.0,95554.0,0.007]
[1739859269271,0.157976,95556.0,95554.0,0.007]
[1739859269682,0.001,95556.0,95554.0,0.007]
[1739859269888,0.04714226,95557.0,95549.0,0.209316]
[1739859270103,0.001,95556.0,95554.0,0.006]
[1739859270309,0.157976,95556.0,95554.0,0.013]
[1739859270520,0.157976,95556.0,95554.0,0.007]
[1739859270937,0.156978,95555.0,95547.0,0.15699]
[1739859271083,0.001,95556.0,95549.0,0.007]
[1739859271288,0.210302,95556.0,95549.0,0.007]
[1739859271500,0.001,95556.0,95549.0,0.163986]
[1739859271862,0.002,95556.0,95554.0,0.007]
[1739859272054,0.157976,95556.0,95549.0,0.007]
[1739859272378,0.002,95556.0,95549.0,0.007]
[1739859272582,0.001,95556.0,95539.0,0.10250365]
[1739859272824,0.12054066,95549.0,95539.0,0.10250365]
[1739859273023,0.12054066,95549.0,95547.0,0.0003404]
[1739859273258,0.156987,95549.0,95547.0,0.0003404]
[1739859274034,0.209312,95551.0,95547.0,0.0003404]
[1739859274382,0.156987,95549.0,95547.0,0.0073404]
[1739859274586,0.209307,95554.0,95547.0,0.0073404]
[1739859274871,0.156986,95550.0,95547.0,0.0073404]
[1739859275114,0.156987,95549.0,95547.0,0.0073404]
[1739859275392,0.157987,95549.0,95547.0,0.0143404]
[1739859275627,0.156987,95549.0,95547.0,0.0073404]
[1739859275854,0.156984,95551.0,95547.0,0.0050404]
[1739859276331,0.156987,95550.0,95539.0,0.25950565]
[1739859276541,0.001,95549.0,95547.0,0.014]
[1739859276772,0.156988,95549.0,95547.0,0.007]
[1739859276972,0.156984,95551.0,95547.0,0.007]
[1739859277258,0.156987,95549.0,95539.0,0.25950665]
[1739859277468,0.27752766,95549.0,95539.0,0.26650665]
[1739859277882,0.156994,95545.0,95534.0,0.0001703]
[1739859278020,0.156992,95547.0,95535.0,0.10250365]
[1739859278232,0.12054066,95549.0,95535.0,0.10250365]
[1739859278614,0.156989,95548.0,95536.0,0.209345]
[1739859278777,0.156989,95548.0,95539.0,0.007]
[1739859278978,0.156989,95548.0,95537.0,0.10250365]
[1739859279174,0.156989,95548.0,95547.0,0.007]
[1739859280108,0.156989,95548.0,95531.0,0.02057985]
[1739859280109,0.0811,95547.0,95524.0,0.0752]
[1739859280332,2.971927,95546.0,95539.0,0.004]
[1739859280541,0.157002,95540.0,95539.0,0.004]
[1739859280713,0.157005,95538.0,95537.0,0.007]
[1739859281179,0.206105,95538.0,95537.0,0.007]
[1739859281398,0.15701,95535.0,95534.0,0.0001703]
[1739859281545,0.967231,95535.0,95534.0,0.0001703]
[1739859281754,1.437897,95535.0,95534.0,0.0001703]
[1739859281956,1.45353732,95535.0,95534.0,0.0001703]
[1739859282543,1.55604097,95535.0,95534.0,0.0001703]
[1739859282780,2.41574497,95535.0,95534.0,0.0001703]
[1739859282998,4.09131597,95535.0,95496.0,0.045]
[1739859283208,0.12054066,95506.0,95504.0,0.15706]
[1739859283510,0.12054066,95506.0,95497.0,0.18240365]
[1739859283511,0.12054066,95516.0,95505.0,0.10250365]
[1739859283728,0.15,95515.0,95505.0,0.10250365]
[1739859283972,0.157052,95510.0,95505.0,0.10250365]
[1739859284172,0.209395,95513.0,95505.0,0.10250365]
[1739859284382,0.157055,95508.0,95496.0,0.003]
[1739859284587,0.12054066,95506.0,95505.0,4.43e-05]
[1739859284922,0.157058,95506.0,95505.0,4.43e-05]
[1739859285052,0.307058,95506.0,95505.0,4.43e-05]
[1739859285254,0.715902,95506.0,95505.0,4.43e-05]
[1739859285456,1.126972,95506.0,95505.0,4.43e-05]
[1739859285655,0.40956165,95506.0,95505.0,4.43e-05]
[1739859285884,2.31176215,95506.0,95505.0,0.0130443]
[1739859286121,2.48604215,95506.0,95505.0,0.0070443]
[1739859286235,2.48604215,95506.0,95505.0,4.43e-05]
[1739859286437,2.48704215,95506.0,95505.0,0.0060443]
[1739859286663,2.29002815,95506.0,95505.0,0.0070443]
[1739859286920,2.25093693,95506.0,95505.0,0.0070443]
[1739859287203,2.24993693,95506.0,95505.0,4.43e-05]
[1739859287446,1.25908128,95506.0,95505.0,4.43e-05]
[1739859288280,1.2397535,95506.0,95505.0,4.43e-05]
[1739859288477,1.2397535,95506.0,95505.0,0.0050443]
[1739859288686,1.2407535,95506.0,95505.0,0.0100443]
[1739859288896,1.23978593,95506.0,95505.0,0.0100443]
[1739859289096,0.87325193,95506.0,95505.0,0.0100443]
[1739859289502,0.85565793,95506.0,95505.0,0.0100443]
[1739859289742,0.85465793,95506.0,95505.0,0.0050443]
[1739859290132,0.85465793,95506.0,95505.0,0.0090443]
[1739859290331,0.68594958,95506.0,95505.0,0.0090443]
[1739859290541,0.58344593,95506.0,95505.0,0.0090443]
[1739859290732,0.38879043,95506.0,95505.0,0.0090443]
[1739859290936,2.86976793,95506.0,95505.0,0.0090443]
[1739859291159,2.81752893,95506.0,95505.0,0.0090443]
[1739859291476,2.51068593,95506.0,95505.0,4.43e-05]
[1739859291898,1.61531393,95506.0,95505.0,0.0050443]
[1739859292113,0.81148043,95506.0,95505.0,0.0050443]
[1739859292305,0.81148043,95506.0,95505.0,0.0090443]
[1739859292543,0.78774543,95506.0,95505.0,0.0090443]
[1739859292723,0.73521043,95506.0,95505.0,0.0090443]
[1739859292925,0.77014893,95506.0,95505.0,0.0090443]
[1739859293127,0.84794893,95506.0,95505.0,0.0090443]
[1739859294930,0.89754893,95506.0,95505.0,0.0090443]
[1739859295151,1.00005258,95506.0,95505.0,0.0090443]
[1739859295296,0.86041043,95506.0,95505.0,0.0090443]
[1739859295513,0.88469007,95506.0,95505.0,0.0090443]
[1739859295755,0.88469007,95506.0,95505.0,0.0040443]
[1739859295957,0.98719372,95506.0,95505.0,0.0070443]
[1739859296519,1.01019372,95506.0,95505.0,4.43e-05]
[1739859296748,1.11269737,95506.0,95505.0,4.43e-05]
[1739859296946,1.11269737,95506.0,95505.0,0.0020443]
[1739859297146,1.11269737,95506.0,95505.0,4.43e-05]
[1739859297594,0.12054066,95473.0,95464.0,0.157126]
[1739859297754,0.0768,95487.0,95465.0,0.10250365]
[1739859297962,0.12054066,95474.0,95465.0,0.10250365]
[1739859298584,0.12054066,95474.0,95464.0,0.00116306]
[1739859299020,0.27765166,95474.0,95464.0,0.00116306]
[1739859299226,0.12054066,95474.0,95464.0,0.00116306]
[1739859299405,0.27765266,95474.0,95464.0,0.00116306]
[1739859299617,0.12154066,95474.0,95465.0,0.007]
[1739859299943,0.10576637,95474.0,95465.0,0.00811876]
[1739859300149,0.24434564,95481.0,95465.0,0.00811876]
[1739859300150,0.03487964,95481.0,95475.0,0.157107]
[1739859300366,0.12054066,95490.0,95473.0,0.03011356]
[1739859300597,0.12054066,95490.0,95486.0,0.15709]
[1739859300786,0.01506248,95494.0,95478.0,0.20947]
[1739859300996,0.01506248,95494.0,95477.0,0.209474]
[1739859300997,0.12054066,95490.0,95477.0,0.209474]
[1739859301243,0.12054066,95490.0,95478.0,0.00104725]
[1739859301477,0.001,95481.0,95476.0,0.10250365]
[1739859301690,0.01927611,95489.0,95479.0,0.157102]
[1739859301907,0.01927611,95489.0,95478.0,0.157103]
[1739859302134,0.01927611,95489.0,95478.0,0.10250365]
[1739859302347,0.01927611,95489.0,95488.0,0.157087]
[1739859302596,0.01927611,95489.0,95483.0,0.20946]
[1739859302799,0.001,95490.0,95483.0,0.10250365]
[1739859303023,0.001,95490.0,95487.0,0.157089]
[1739859303253,0.001,95490.0,95488.0,0.157086]
[1739859303666,0.001,95490.0,95483.0,0.10250365]
[1739859303667,0.001,95490.0,95486.0,0.15709]
[1739859303893,0.001,95490.0,95483.0,0.10750365]
[1739859303894,0.001,95489.0,95483.0,0.10750365]
[1739859304112,0.12054066,95498.0,95483.0,0.10250365]
[1739859304313,0.12054066,95498.0,95487.0,0.005]
[1739859304314,1.91051798,95497.0,95487.0,0.005]
[1739859304530,0.12054066,95498.0,95488.0,0.007]
[1739859304739,0.157084,95490.0,95488.0,0.007]
[1739859304945,0.24108132,95498.0,95486.0,0.005]
[1739859305163,0.157079,95494.0,95486.0,0.005]
[1739859305368,0.001,95489.0,95486.0,0.005]
[1739859305799,0.03522325,95489.0,95486.0,0.005]
[1739859306005,0.03433708,95489.0,95486.0,0.005]
[1739859306217,0.12054066,95496.0,95486.0,0.005]
[1739859306454,0.12054066,95496.0,95488.0,0.157087]
[1739859306661,0.27761266,95498.0,95488.0,0.157087]
[1739859306867,0.27761266,95498.0,95486.0,0.15709]
[1739859307089,0.01931211,95495.0,95486.0,0.15709]
[1739859307291,0.01931211,95495.0,95487.0,0.160087]
[1739859307505,0.01931211,95495.0,95488.0,0.007]
[1739859307506,0.001,95490.0,95488.0,0.007]
[1739859307712,0.001,95490.0,95488.0,0.164087]
[1739859307920,0.12054066,95498.0,95489.0,0.157084]
[1739859308131,0.2097438,95510.0,95508.0,0.157053]
[1739859308132,0.0003408,95510.0,95508.0,0.157053]
[1739859309010,0.0003408,95510.0,95508.0,0.156053]
[1739859309229,0.0003408,95510.0,95508.0,0.25855665]
[1739859309442,0.0003408,95510.0,95509.0,0.10355054]
[1739859310333,0.0003408,95510.0,95509.0,0.10250365]
[1739859310541,0.12054066,95520.0,95509.0,0.10250365]
[1739859310746,0.12054066,95520.0,95514.0,0.157044]
[1739859310919,0.12054066,95520.0,95512.0,0.157047]
[1739859311122,0.157039,95518.0,95509.0,0.007]
[1739859311330,0.12054066,95520.0,95511.0,0.157049]
[1739859311553,0.12054066,95520.0,95509.0,0.007]
[1739859311726,0.157051,95510.0,95509.0,0.007]
[1739859312117,0.205024,95512.0,95509.0,0.007]
[1739859312329,0.157051,95511.0,95509.0,0.007]
[1739859312523,0.157053,95509.0,95508.0,4.43e-05]
[1739859312733,3.047305,95509.0,95508.0,4.43e-05]
[1739859312955,0.386967,95509.0,95508.0,4.43e-05]
[1739859313423,0.42064322,95509.0,95508.0,4.43e-05]
[1739859313620,0.229914,95509.0,95508.0,0.10254795]
[1739859313825,0.12054066,95520.0,95508.0,0.10254795]
[1739859314226,0.157053,95509.0,95508.0,0.0020443]
[1739859314427,1.01837422,95509.0,95508.0,0.0020443]
[1739859314723,1.51802222,95509.0,95508.0,0.0020443]
[1739859314940,2.09042,95509.0,95508.0,0.0020443]
[1739859315142,2.75608722,95509.0,95508.0,0.0040443]
[1739859315351,2.76647322,95509.0,95508.0,0.0040443]
[1739859315619,2.91647322,95509.0,95508.0,4.43e-05]
[1739859316040,2.76842922,95509.0,95508.0,0.0030443]
[1739859316211,1.96021222,95509.0,95508.0,0.0030443]
[1739859316420,1.88249822,95509.0,95508.0,0.0030443]
[1739859316641,1.72874722,95509.0,95508.0,0.0050443]
[1739859316827,0.71326522,95509.0,95508.0,0.0050443]
[1739859317030,0.84039322,95509.0,95508.0,0.0050443]
[1739859317186,0.84039322,95509.0,95508.0,0.0020443]
[1739859317388,0.84039322,95509.0,95508.0,0.0040443]
[1739859317656,0.78281022,95509.0,95508.0,0.0040443]
[1739859317804,0.62575722,95509.0,95508.0,0.0040443]
[1739859318045,0.03367622,95509.0,95508.0,0.0040443]
[1739859318469,0.157039,95518.0,95508.0,0.0020443]
[1739859318636,0.0493,95519.0,95508.0,0.0020443]
[1739859318842,0.157051,95511.0,95508.0,0.0020443]
[1739859319044,0.157047,95513.0,95508.0,0.0040443]
[1739859319323,0.157049,95512.0,95508.0,0.0020443]
[1739859319646,0.15704,95517.0,95508.0,0.0020443]
[1739859319854,0.157042,95516.0,95508.0,0.0020443]
[1739859320054,0.15704,95517.0,95508.0,0.0020443]
[1739859320254,0.209374,95523.0,95508.0,0.001]
[1739859320460,0.12054066,95520.0,95508.0,0.001]
[1739859320660,0.12054066,95520.0,95507.0,0.157055]
[1739859320661,0.262833,95519.0,95507.0,0.157055]
[1739859320867,0.262833,95519.0,95503.0,0.209415]
[1739859320868,0.209382,95519.0,95503.0,0.0143789]
[1739859321075,0.12054066,95513.0,95506.0,0.157057]
[1739859321573,0.12054066,95513.0,95508.0,0.0001703]
[1739859322243,0.12088126,95520.0,95508.0,0.0001703]
[1739859322996,0.12088126,95520.0,95508.0,0.0011703]
[1739859322997,0.0003406,95520.0,95508.0,0.0011703]
[1739859323202,0.12088126,95520.0,95510.0,0.15705]
[1739859323412,0.12088126,95520.0,95508.0,0.0001703]
[1739859323605,0.12088126,95520.0,95508.0,0.0011703]
[1739859324153,0.27791726,95520.0,95508.0,0.0021703]
[1739859324381,0.12088126,95520.0,95508.0,0.0021703]
[1739859325335,0.157039,95518.0,95508.0,0.0021703]
[1739859325962,0.24142192,95520.0,95508.0,0.0021703]
[1739859326165,0.27791726,95520.0,95508.0,0.0021703]
[1739859326372,0.03224435,95519.0,95508.0,0.0011703]
[1739859326577,0.12088126,95520.0,95508.0,0.0011703]
[1739859326788,0.27791726,95520.0,95508.0,0.0021703]
[1739859326988,0.12088126,95520.0,95508.0,0.0001703]
[1739859327225,0.0003406,95520.0,95508.0,0.0001703]
[1739859327440,0.0003406,95520.0,95509.0,0.18200365]
[1739859327856,0.12054066,95530.0,95513.0,0.157046]
[1739859328063,0.209352,95533.0,95510.0,0.209402]
[1739859328064,0.12054066,95520.0,95510.0,0.209402]
[1739859328254,0.12054066,95520.0,95511.0,0.157049]
[1739859328465,0.12054066,95520.0,95510.0,0.10250365]
[1739859328616,0.12054066,95520.0,95508.0,0.0011703]
[1739859328827,0.157039,95518.0,95509.0,0.006]
[1739859329036,0.12054066,95520.0,95509.0,0.006]
[1739859329235,0.157038,95518.0,95509.0,0.006]
[1739859329459,0.32992166,95520.0,95509.0,0.006]
[1739859329697,0.157044,95515.0,95510.0,0.001]
[1739859329908,0.03224435,95519.0,95510.0,0.001]
[1739859330297,0.12054066,95520.0,95508.0,0.0001703]
[1739859330457,0.27757566,95520.0,95510.0,0.002]
[1739859330658,0.12054066,95520.0,95510.0,0.002]
[1739859330923,0.12154066,95520.0,95508.0,0.0001703]
[1739859331124,0.12154066,95520.0,95510.0,0.001]
[1739859331795,0.12154066,95520.0,95508.0,0.0001703]
[1739859332047,0.12154066,95520.0,95510.0,0.002]
[1739859332048,0.12054066,95520.0,95510.0,0.002]
[1739859332244,0.12054066,95520.0,95514.0,0.157044]
[1739859332444,0.12054066,95530.0,95510.0,0.10450365]
[1739859332634,0.12054066,95530.0,95513.0,0.209394]
[1739859332807,0.12054066,95530.0,95513.0,0.157045]
[1739859333176,0.0808,95549.0,95523.0,0.209372]
[1739859333375,0.12054066,95540.0,95524.0,0.10250365]
[1739859333959,0.12054066,95540.0,95526.0,0.209367]
[1739859334165,0.0474,95550.0,95527.0,0.10355033]
[1739859334366,0.12054066,95550.0,95527.0,0.10355033]
[1739859334570,0.12098297,95550.0,95527.0,0.10355033]
[1739859334747,0.12098297,95550.0,95534.0,0.15701]
[1739859334952,0.12098297,95550.0,95530.0,0.157017]
[1739859335173,0.27796797,95550.0,95532.0,0.157014]
[1739859335379,0.27796797,95550.0,95531.0,0.10250365]
[1739859335380,0.12098297,95550.0,95537.0,0.157005]
[1739859335580,0.12098297,95550.0,95531.0,0.10250365]
[1739859335785,0.12054066,95541.0,95531.0,0.10250365]
[1739859336152,0.12098297,95550.0,95531.0,0.10250365]
[1739859336357,0.28196897,95550.0,95533.0,0.157013]
[1739859336560,0.12098297,95550.0,95531.0,0.10250365]
[1739859336770,0.00044231,95550.0,95532.0,0.00104664]
[1739859336970,0.00044231,95550.0,95534.0,0.0818]
[1739859337175,0.00044231,95550.0,95535.0,0.09527023]
[1739859337466,0.00044231,95550.0,95548.0,0.156987]
[1739859337669,0.00044231,95550.0,95549.0,0.10250365]
[1739859338520,0.00444231,95550.0,95549.0,0.10250365]
[1739859338731,0.00044231,95550.0,95549.0,0.10250365]
[1739859339238,0.00044231,95550.0,95549.0,0.10450365]
[1739859339467,0.00044231,95550.0,95549.0,0.10250365]
[1739859339657,0.00144231,95550.0,95549.0,0.10850365]
[1739859339860,0.12054066,95560.0,95549.0,0.10850365]
[1739859340064,0.15,95575.0,95549.0,0.11050365]
[1739859340065,0.12054066,95570.0,95549.0,0.11050365]
[1739859340401,0.156955,95569.0,95551.0,0.156983]
[1739859340636,0.12054066,95570.0,95549.0,0.10850365]
[1739859340852,0.12054066,95570.0,95551.0,0.10250365]
[1739859341261,0.156957,95568.0,95551.0,0.10250365]
[1739859341767,0.156957,95568.0,95551.0,0.10350365]
[1739859341972,0.12054066,95570.0,95551.0,0.10350365]
[1739859342104,0.156958,95567.0,95551.0,0.10350365]
[1739859342507,0.12054066,95570.0,95554.0,0.156978]
[1739859342707,0.27749466,95570.0,95555.0,0.10250365]
[1739859343338,0.12054066,95570.0,95555.0,0.10250365]
[1739859343716,1.055897,95569.0,95555.0,0.10250365]
[1739859343928,0.156955,95569.0,95555.0,0.10250365]
[1739859344165,0.12054066,95570.0,95555.0,0.25948065]
[1739859344541,0.108534,95569.0,95555.0,0.26047965]
[1739859344750,0.12054066,95570.0,95557.0,0.156974]
[1739859344873,0.12054066,95570.0,95558.0,0.156971]
[1739859345086,0.00013259,95572.0,95553.0,0.0763]
[1739859345293,0.00013259,95572.0,95560.0,0.209292]
[1739859345496,0.00013259,95572.0,95570.0,0.156952]
[1739859345923,0.00013259,95572.0,95568.0,0.00104627]
[1739859346124,0.0001704,95570.0,95569.0,0.156953]
[1739859346539,0.0001704,95570.0,95565.0,0.209279]
[1739859346875,0.0001704,95570.0,95565.0,0.10250365]
[1739859347286,0.0001704,95570.0,95569.0,0.156954]
[1739859347489,0.0001704,95570.0,95565.0,0.10250365]
[1739859347688,0.0001704,95570.0,95569.0,0.003]
[1739859348077,0.0001704,95570.0,95565.0,0.10250365]
[1739859348078,0.0001704,95570.0,95568.0,0.156955]
[1739859348498,0.0001704,95570.0,95569.0,0.003]
[1739859348905,0.0001704,95570.0,95569.0,0.006]
[1739859349113,0.0001704,95570.0,95569.0,0.003]
[1739859349682,0.0001704,95570.0,95568.0,0.003]
[1739859349882,0.0001704,95570.0,95568.0,0.007]
[1739859350329,0.0001704,95570.0,95568.0,0.003]